fUST/lending_fUST_20260518
["ID","MTS","AMOUNT","RATE_DAILY","PERIOD"]
[422572823,1779109270000,-465.8109,8.017e-05,2]
[422572824,1779109287000,-327.9399772,8.139e-05,2]
[422573059,1779109838000,-1383.33830386,7.448e-05,2]
[422573072,1779109838000,-25191.52661549,7.6e-05,2]
[422573070,1779109838000,-1200.0,7.599e-05,2]
[422573065,1779109838000,-3616.66169614,7.448e-05,2]
[422573069,1779109838000,-300.0,7.599e-05,2]
[422573067,1779109838000,-327.67294641,7.524e-05,2]
[422573074,1779109838000,-525.2261937,8.43e-05,2]
[422573078,1779109838000,-189.11475854,9.532e-05,2]
[422573076,1779109838000,-386.65407677,9.523e-05,2]
[422573080,1779109838000,-154.1439456,9.534e-05,2]
[422573082,1779109838000,-1471.58368375,9.682e-05,2]
[422573087,1779109838000,-152.0,9.822e-05,7]
[422573085,1779109838000,-6093.46670809,9.682e-05,2]
[422573091,1779109838000,-7941.73218868,9.885e-05,2]
[422573110,1779109838000,-235.01908923,0.00010205,2]
[422573095,1779109838000,-443.0,9.89e-05,2]
[422573097,1779109838000,-161.68513202,0.00010001,2]
[422573104,1779109838000,-214.18546674,0.00010179,2]
[422573093,1779109838000,-185.0,9.89e-05,2]
[422573108,1779109838000,-525.2261937,0.00010183,2]
[422573089,1779109838000,-250.0,9.841e-05,2]
[422573100,1779109838000,-1388.55684626,0.00010111,2]
[422573112,1779109838000,-206.49732818,0.00010211,2]
[422573098,1779109838000,-7994.85997757,0.00010089,2]
[422573114,1779109838000,-1689.72065281,0.00010211,2]
[422573106,1779109838000,-308.2878912,0.00010179,2]
[422573102,1779109838000,-378.22951708,0.00010177,2]
[422573153,1779109841000,-2936.42643806,0.00010211,2]
[422573151,1779109841000,-5339.53196822,0.00010211,2]
[422573152,1779109841000,-1604.14,0.00010211,2]
[422573170,1779109844000,-500.0,0.00010427,2]
[422573169,1779109844000,-176.50460043,0.00010427,2]
[422573168,1779109844000,-3000.0,0.00010411,2]
[422573167,1779109844000,-4631.62301856,0.00010396,2]
[422573163,1779109844000,-80837.22155623,0.00010211,2]
[422573165,1779109844000,-253.012,0.00010228,2]
[422573162,1779109844000,-1999.3,0.00010211,2]
[422573180,1779109844000,-500.0,0.00010427,2]
[422573164,1779109844000,-446.59834363,0.00010219,2]
[422573179,1779109844000,-500.0,0.00010427,2]
[422573166,1779109844000,-8406.96030033,0.00010292,2]
[422573177,1779109844000,-500.0,0.00010427,2]
[422573172,1779109844000,-500.0,0.00010427,2]
[422573174,1779109844000,-500.0,0.00010427,2]
[422573176,1779109844000,-592.66098661,0.00010427,2]
[422573173,1779109844000,-500.0,0.00010427,2]
[422573175,1779109844000,-500.0,0.00010427,2]
[422573178,1779109844000,-500.0,0.00010427,2]
[422573171,1779109844000,-500.0,0.00010427,2]
[422573182,1779109844000,-550.0,0.00010427,2]
[422573181,1779109844000,-500.0,0.00010427,2]
[422573183,1779109844000,-78507.51808766,0.00010428,2]
[422573196,1779109847000,-297.73222909,0.00010219,2]
[422573197,1779109847000,-2416.1623262,0.00010324,2]
[422573200,1779109847000,-2466.08903906,0.00010428,2]
[422573199,1779109847000,-23024.11043273,0.00010428,2]
[422573201,1779109847000,-27314.69064759,0.00010428,2]
[422573198,1779109847000,-2583.8376738,0.00010324,2]
[422573206,1779110155000,333.869,5.479e-05,2]
[422573238,1779110574000,300.0,0.000178,120]
[422573241,1779110880000,172.7479814,3.051e-05,2]
[422573418,1779111035000,-256.35143019,5.135e-05,2]
[422573435,1779111038000,-500.0,5.399e-05,2]
[422573438,1779111038000,-500.0,5.399e-05,2]
[422573437,1779111038000,-500.0,5.399e-05,2]
[422573441,1779111038000,-500.0,5.399e-05,2]
[422573439,1779111038000,-500.0,5.399e-05,2]
[422573446,1779111038000,-500.0,5.399e-05,2]
[422573445,1779111038000,-500.0,5.399e-05,2]
[422573440,1779111038000,-500.0,5.399e-05,2]
[422573447,1779111038000,-500.0,5.399e-05,2]
[422573436,1779111038000,-500.0,5.399e-05,2]
[422573433,1779111038000,-500.0,5.399e-05,2]
[422573430,1779111038000,-500.0,5.399e-05,2]
[422573432,1779111038000,-530.32827959,5.399e-05,2]
[422573431,1779111038000,-500.0,5.399e-05,2]
[422573429,1779111038000,-500.0,5.399e-05,2]
[422573428,1779111038000,-500.0,5.399e-05,2]
[422573426,1779111038000,-500.0,5.399e-05,2]
[422573427,1779111038000,-500.0,5.399e-05,2]
[422573444,1779111038000,-500.0,5.399e-05,2]
[422573424,1779111038000,-337.35092886,5.306e-05,2]
[422573434,1779111038000,-500.0,5.399e-05,2]
[422573425,1779111038000,-170.30313056,5.399e-05,2]
[422573443,1779111038000,-500.0,5.399e-05,2]
[422573448,1779111038000,-500.0,5.399e-05,2]
[422573468,1779111038000,-3238.28883582,5.4e-05,2]
[422573466,1779111038000,-6895.17028341,5.4e-05,2]
[422573465,1779111038000,-78701.55217908,5.4e-05,2]
[422573467,1779111038000,-17226.94880536,5.4e-05,2]
[422573464,1779111038000,-11732.39378995,5.4e-05,2]
[422573442,1779111038000,-500.0,5.399e-05,2]
[422573463,1779111038000,-500.0,5.399e-05,2]
[422573456,1779111038000,-500.0,5.399e-05,2]
[422573452,1779111038000,-500.0,5.399e-05,2]
[422573460,1779111038000,-500.0,5.399e-05,2]
[422573462,1779111038000,-500.0,5.399e-05,2]
[422573458,1779111038000,-500.0,5.399e-05,2]
[422573457,1779111038000,-500.0,5.399e-05,2]
[422573451,1779111038000,-248.7591779,5.399e-05,2]
[422573449,1779111038000,-500.0,5.399e-05,2]
[422573453,1779111038000,-500.0,5.399e-05,2]
[422573455,1779111038000,-500.0,5.399e-05,2]
[422573459,1779111038000,-500.0,5.399e-05,2]
[422573461,1779111038000,-500.0,5.399e-05,2]
[422573450,1779111038000,-500.0,5.399e-05,2]
[422573454,1779111038000,-500.0,5.399e-05,2]
[422573480,1779111040000,-3139.01798725,5.4e-05,2]
[422573479,1779111040000,-544.22752634,5.4e-05,2]
[422573566,1779111052000,-11865.93059279,5.4e-05,2]
[422573568,1779111052000,-250.0,6.785e-05,2]
[422573567,1779111052000,-4776.99460718,6e-05,2]
[422573571,1779111052000,-670.80056573,8.119e-05,2]
[422573569,1779111052000,-398.07409605,7.306e-05,2]
[422573570,1779111052000,-680.86666416,8e-05,2]
[422573573,1779111052000,-500.0,8.218e-05,2]
[422573584,1779111052000,-12.06248238,8.218e-05,2]
[422573583,1779111052000,-500.0,8.218e-05,2]
[422573579,1779111052000,-275.7626292,8.218e-05,2]
[422573582,1779111052000,-500.0,8.218e-05,2]
[422573577,1779111052000,-500.0,8.218e-05,2]
[422573574,1779111052000,-500.0,8.218e-05,2]
[422573578,1779111052000,-224.2373708,8.218e-05,2]
[422573575,1779111052000,-500.0,8.218e-05,2]
[422573576,1779111052000,-500.0,8.218e-05,2]
[422573581,1779111052000,-500.0,8.218e-05,2]
[422573580,1779111052000,-500.0,8.218e-05,2]
[422573572,1779111052000,-10.06609843,8.119e-05,2]
[422573611,1779111053000,-848.94,8.219e-05,2]
[422573610,1779111053000,-270.29375709,8.219e-05,2]
[422573599,1779111053000,-810.54,8.219e-05,2]
[422573602,1779111053000,-500.0,8.219e-05,2]
[422573606,1779111053000,-9086.17,8.219e-05,2]
[422573605,1779111053000,-500.0,8.219e-05,2]
[422573601,1779111053000,-500.0,8.219e-05,2]
[422573604,1779111053000,-2249.35,8.219e-05,2]
[422573600,1779111053000,-2211.8,8.219e-05,2]
[422573607,1779111053000,-500.0,8.219e-05,2]
[422573609,1779111053000,-1874.63,8.219e-05,2]
[422573593,1779111053000,-138.09340256,8.218e-05,2]
[422573598,1779111053000,-258.80558275,8.218e-05,2]
[422573588,1779111053000,-500.0,8.218e-05,2]
[422573597,1779111053000,-500.0,8.218e-05,2]
[422573590,1779111053000,-500.0,8.218e-05,2]
[422573589,1779111053000,-500.0,8.218e-05,2]
[422573595,1779111053000,-500.0,8.218e-05,2]
[422573596,1779111053000,-500.0,8.218e-05,2]
[422573591,1779111053000,-500.0,8.218e-05,2]
[422573594,1779111053000,-500.0,8.218e-05,2]
[422573608,1779111053000,-1265.92,8.219e-05,2]
[422573585,1779111053000,-487.93751762,8.218e-05,2]
[422573587,1779111053000,-91.03028718,8.218e-05,2]
[422573586,1779111053000,-408.96971282,8.218e-05,2]
[422573592,1779111053000,-361.90659744,8.218e-05,2]
[422573603,1779111053000,-252.14942919,8.219e-05,2]
[422573616,1779111053000,-2880.8,8.219e-05,2]
[422573614,1779111053000,-528.43,8.219e-05,2]
[422573613,1779111053000,-3993.18,8.219e-05,2]
[422573638,1779111053000,-785.90876817,8.219e-05,2]
[422573639,1779111053000,-7808.74716448,8.219e-05,2]
[422573626,1779111053000,-656.46,8.219e-05,2]
[422573633,1779111053000,-500.0,8.219e-05,2]
[422573631,1779111053000,-2655.42,8.219e-05,2]
[422573630,1779111053000,-3269.27,8.219e-05,2]
[422573629,1779111053000,-1736.8330361,8.219e-05,2]
[422573637,1779111053000,-1328.70893922,8.219e-05,2]
[422573627,1779111053000,-500.0,8.219e-05,2]
[422573617,1779111053000,-3623.66,8.219e-05,2]
[422573620,1779111053000,-3627.73,8.219e-05,2]
[422573636,1779111053000,-732.22,8.219e-05,2]
[422573618,1779111053000,-825.48,8.219e-05,2]
[422573635,1779111053000,-3136.24,8.219e-05,2]
[422573623,1779111053000,-500.0,8.219e-05,2]
[422573628,1779111053000,-1136.0469639,8.219e-05,2]
[422573625,1779111053000,-6324.94,8.219e-05,2]
[422573612,1779111053000,-1851.89,8.219e-05,2]
[422573634,1779111053000,-500.0,8.219e-05,2]
[422573621,1779111053000,-562.19,8.219e-05,2]
[422573615,1779111053000,-3131.24,8.219e-05,2]
[422573624,1779111053000,-859.45,8.219e-05,2]
[422573619,1779111053000,-1013.58,8.219e-05,2]
[422573622,1779111053000,-500.0,8.219e-05,2]
[422573632,1779111053000,-500.0,8.219e-05,2]
[422573640,1779111070000,-5000.0,8e-05,2]
[422573650,1779111612000,179.647246,3.604e-05,2]
[422573726,1779112232000,-500.0,8.218e-05,2]
[422573705,1779112232000,-374.87591779,8.218e-05,2]
[422573720,1779112232000,-500.0,8.218e-05,2]
[422573715,1779112232000,-500.0,8.218e-05,2]
[422573711,1779112232000,-500.0,8.218e-05,2]
[422573709,1779112232000,-500.0,8.218e-05,2]
[422573707,1779112232000,-503.36980884,8.218e-05,2]
[422573703,1779112232000,-500.0,8.218e-05,2]
[422573697,1779112232000,-343.97054109,7.175e-05,2]
[422573699,1779112232000,-300.0,7.774e-05,2]
[422573689,1779112232000,-251.5034752,6.997e-05,2]
[422573693,1779112232000,-300.0,7.067e-05,2]
[422573691,1779112232000,-300.0,7.067e-05,2]
[422573687,1779112232000,-5000.0,6.927e-05,2]
[422573695,1779112232000,-379.0,7.067e-05,2]
[422573685,1779112232000,-5000.0,6.858e-05,2]
[422573723,1779112232000,-581.16390793,8.218e-05,2]
[422573701,1779112232000,-500.0,8.218e-05,2]
[422573717,1779112232000,-500.0,8.218e-05,2]
[422573713,1779112232000,-500.0,8.218e-05,2]
[422573737,1779112232000,-278.57679277,8.218e-05,2]
[422573729,1779112232000,-500.0,8.218e-05,2]
[422573768,1779112232000,-128.97461353,8.219e-05,2]
[422573766,1779112232000,-520.82,8.219e-05,2]
[422573764,1779112232000,-1758.14,8.219e-05,2]
[422573762,1779112232000,-612.72,8.219e-05,2]
[422573760,1779112232000,-520.16,8.219e-05,2]
[422573758,1779112232000,-500.0,8.219e-05,2]
[422573742,1779112232000,-500.0,8.218e-05,2]
[422573748,1779112232000,-176.50460043,8.219e-05,2]
[422573744,1779112232000,-350.0,8.218e-05,2]
[422573756,1779112232000,-500.0,8.219e-05,2]
[422573754,1779112232000,-1539.34,8.219e-05,2]
[422573752,1779112232000,-500.0,8.219e-05,2]
[422573750,1779112232000,-2890.56517,8.219e-05,2]
[422573770,1779112232000,-329.75729643,8.219e-05,2]
[422573740,1779112232000,-221.42320723,8.218e-05,2]
[422573735,1779112232000,-500.0,8.218e-05,2]
[422573731,1779112232000,-500.0,8.218e-05,2]
[422573733,1779112232000,-500.0,8.218e-05,2]
[422573746,1779112232000,-4704.7136,8.219e-05,2]
[422573913,1779112238000,-795.08,8.219e-05,2]
[422573911,1779112238000,-41.82118301,8.219e-05,2]
[422573909,1779112238000,-500.0,8.219e-05,2]
[422573908,1779112238000,-500.0,8.219e-05,2]
[422573912,1779112238000,-458.17881699,8.219e-05,2]
[422573906,1779112238000,-463.29809004,8.219e-05,2]
[422573914,1779112238000,-500.0,8.219e-05,2]
[422573918,1779112238000,-407.72708479,8.219e-05,2]
[422573917,1779112238000,-1082.75,8.219e-05,2]
[422573915,1779112238000,-528.3,8.219e-05,2]
[422573916,1779112238000,-500.0,8.219e-05,2]
[422573910,1779112238000,-500.0,8.219e-05,2]
[422573994,1779112240000,-635.64,8.219e-05,2]
[422573997,1779112240000,-588.2183944,8.219e-05,2]
[422573996,1779112240000,-500.0,8.219e-05,2]
[422573999,1779112240000,-500.0,8.219e-05,2]
[422573990,1779112240000,-2440.15762769,8.137e-05,2]
[422573992,1779112240000,-160.23291521,8.219e-05,2]
[422574001,1779112240000,-500.0,8.219e-05,2]
[422574003,1779112240000,-352.84381917,8.219e-05,2]
[422574005,1779112240000,-534.27,8.219e-05,2]
[422574007,1779112240000,-593.67,8.219e-05,2]
[422574008,1779112240000,-676.24,8.219e-05,2]
[422574010,1779112240000,-242.36247424,8.219e-05,2]
[422574030,1779112240000,-330.07841851,8.219e-05,2]
[422574012,1779112240000,-257.63752576,8.219e-05,2]
[422574026,1779112240000,-500.0,8.219e-05,2]
[422574014,1779112240000,-1031.08966455,8.219e-05,2]
[422574028,1779112240000,-500.0,8.219e-05,2]
[422574017,1779112240000,-586.25033545,8.219e-05,2]
[422574022,1779112240000,-500.0,8.219e-05,2]
[422574018,1779112240000,-423.93841851,8.219e-05,2]
[422574021,1779112240000,-76.88158149,8.219e-05,2]
[422574024,1779112240000,-500.0,8.219e-05,2]
[422574102,1779112243000,-169.92158149,8.219e-05,2]
[422574103,1779112243000,-895.4,8.219e-05,2]
[422574106,1779112243000,-1091.93885171,8.219e-05,2]
[422574111,1779112243000,-557.33,8.219e-05,2]
[422574104,1779112243000,-181.22683022,8.219e-05,2]
[422574107,1779112243000,-1775.86,8.219e-05,2]
[422574105,1779112243000,-702.55114829,8.219e-05,2]
[422574108,1779112243000,-500.13070308,8.219e-05,2]
[422574110,1779112243000,-500.0,8.219e-05,2]
[422574112,1779112243000,-500.0,8.219e-05,2]
[422574115,1779112243000,-325.605359,8.219e-05,2]
[422574113,1779112243000,-519.72,8.219e-05,2]
[422574114,1779112243000,-500.0,8.219e-05,2]
[422574109,1779112243000,-500.0,8.219e-05,2]
[422574133,1779112246000,-500.0,8.219e-05,2]
[422574132,1779112246000,-500.0,8.219e-05,2]
[422574131,1779112246000,-696.7,8.219e-05,2]
[422574130,1779112246000,-500.0,8.219e-05,2]
[422574128,1779112246000,-500.0,8.219e-05,2]
[422574124,1779112246000,-500.0,8.219e-05,2]
[422574126,1779112246000,-853.82,8.219e-05,2]
[422574127,1779112246000,-500.0,8.219e-05,2]
[422574135,1779112246000,-3407.94,8.219e-05,2]
[422574122,1779112246000,-445.494641,8.219e-05,2]
[422574123,1779112246000,-500.0,8.219e-05,2]
[422574125,1779112246000,-1228.64,8.219e-05,2]
[422574134,1779112246000,-500.0,8.219e-05,2]
[422574129,1779112246000,-603.39,8.219e-05,2]
[422574136,1779112246000,-1134.46,8.219e-05,2]
[422574143,1779112246000,-732.47,8.219e-05,2]
[422574148,1779112246000,-500.0,8.219e-05,2]
[422574149,1779112246000,-1847.78,8.219e-05,2]
[422574147,1779112246000,-500.0,8.219e-05,2]
[422574144,1779112246000,-761.5,8.219e-05,2]
[422574145,1779112246000,-500.0,8.219e-05,2]
[422574146,1779112246000,-500.0,8.219e-05,2]
[422574139,1779112246000,-500.0,8.219e-05,2]
[422574137,1779112246000,-500.0,8.219e-05,2]
[422574141,1779112246000,-549.18,8.219e-05,2]
[422574140,1779112246000,-1270.34,8.219e-05,2]
[422574142,1779112246000,-500.0,8.219e-05,2]
[422574138,1779112246000,-686.71,8.219e-05,2]
[422574168,1779112247000,-500.0,8.219e-05,2]
[422574160,1779112247000,-500.0,8.219e-05,2]
[422574164,1779112247000,-534.58,8.219e-05,2]
[422574165,1779112247000,-1157.46,8.219e-05,2]
[422574163,1779112247000,-500.0,8.219e-05,2]
[422574162,1779112247000,-1005.62,8.219e-05,2]
[422574161,1779112247000,-500.0,8.219e-05,2]
[422574158,1779112247000,-550.7,8.219e-05,2]
[422574153,1779112247000,-650.98,8.219e-05,2]
[422574157,1779112247000,-500.0,8.219e-05,2]
[422574156,1779112247000,-500.0,8.219e-05,2]
[422574152,1779112247000,-500.0,8.219e-05,2]
[422574154,1779112247000,-500.0,8.219e-05,2]
[422574150,1779112247000,-873.14,8.219e-05,2]
[422574151,1779112247000,-500.0,8.219e-05,2]
[422574155,1779112247000,-622.62,8.219e-05,2]
[422574178,1779112247000,-1222.06,8.219e-05,2]
[422574159,1779112247000,-3370.75,8.219e-05,2]
[422574179,1779112247000,-585.12,8.219e-05,2]
[422574166,1779112247000,-1728.59,8.219e-05,2]
[422574175,1779112247000,-500.0,8.219e-05,2]
[422574188,1779112247000,-1311.69,8.219e-05,2]
[422574190,1779112247000,-234.54138603,8.219e-05,2]
[422574185,1779112247000,-599.17,8.219e-05,2]
[422574180,1779112247000,-500.0,8.219e-05,2]
[422574189,1779112247000,-648.43,8.219e-05,2]
[422574186,1779112247000,-506.26992768,8.219e-05,2]
[422574187,1779112247000,-1649.09007232,8.219e-05,2]
[422574183,1779112247000,-942.51,8.219e-05,2]
[422574182,1779112247000,-2020.6726801,8.219e-05,2]
[422574184,1779112247000,-533.71,8.219e-05,2]
[422574173,1779112247000,-500.0,8.219e-05,2]
[422574181,1779112247000,-1537.3273199,8.219e-05,2]
[422574177,1779112247000,-500.0,8.219e-05,2]
[422574176,1779112247000,-704.04,8.219e-05,2]
[422574170,1779112247000,-611.16,8.219e-05,2]
[422574167,1779112247000,-1120.22,8.219e-05,2]
[422574172,1779112247000,-651.58,8.219e-05,2]
[422574174,1779112247000,-967.96,8.219e-05,2]
[422574171,1779112247000,-500.0,8.219e-05,2]
[422574169,1779112247000,-1863.93,8.219e-05,2]
[422574193,1779112598000,179.647246,3.65e-05,2]
[422574202,1779112854000,-5000.0,7.584e-05,2]
[422574205,1779112871000,521.0,0.00017808,120]
[422574204,1779112871000,-658.31410506,7.661e-05,2]
[422574207,1779112889000,2000.0,0.00017808,120]
[422574206,1779112889000,-4341.68589494,7.661e-05,2]
[422574209,1779112905000,-1200.0,7.815e-05,2]
[422574210,1779112923000,-4458.31410506,7.737e-05,2]
[422574211,1779112939000,-541.68589494,7.737e-05,2]
[422574212,1779112956000,-300.0,7.855e-05,2]
[422574213,1779112974000,-300.0,7.855e-05,2]
[422574242,1779113432000,-1582.82410086,7.545e-05,2]
[422574258,1779113438000,-256.17607338,7.621e-05,2]
[422574284,1779113438000,-500.0,8.218e-05,2]
[422574276,1779113438000,-500.0,8.218e-05,2]
[422574277,1779113438000,-500.0,8.218e-05,2]
[422574278,1779113438000,-500.0,8.218e-05,2]
[422574286,1779113438000,-500.0,8.218e-05,2]
[422574273,1779113438000,-500.0,8.218e-05,2]
[422574272,1779113438000,-500.0,8.218e-05,2]
[422574274,1779113438000,-500.0,8.218e-05,2]
[422574282,1779113438000,-324.71783968,8.218e-05,2]
[422574270,1779113438000,-559.2997876,8.218e-05,2]
[422574283,1779113438000,-500.0,8.218e-05,2]
[422574281,1779113438000,-500.0,8.218e-05,2]
[422574280,1779113438000,-500.0,8.218e-05,2]
[422574279,1779113438000,-500.0,8.218e-05,2]
[422574271,1779113438000,-500.0,8.218e-05,2]
[422574264,1779113438000,-500.0,8.218e-05,2]
[422574262,1779113438000,-300.0,8.216e-05,2]
[422574266,1779113438000,-500.0,8.218e-05,2]
[422574268,1779113438000,-500.0,8.218e-05,2]
[422574265,1779113438000,-500.0,8.218e-05,2]
[422574267,1779113438000,-500.0,8.218e-05,2]
[422574269,1779113438000,-393.34281494,8.218e-05,2]
[422574261,1779113438000,-300.0,8.216e-05,2]
[422574260,1779113438000,-300.0,8.216e-05,2]
[422574263,1779113438000,-1200.0,8.217e-05,2]
[422574259,1779113438000,-358.68289692,7.66e-05,2]
[422574257,1779113438000,-219.66339945,7.545e-05,2]
[422574256,1779113438000,-3197.51249969,7.545e-05,2]
[422574285,1779113438000,-500.0,8.218e-05,2]
[422574290,1779113438000,-500.0,8.219e-05,2]
[422574293,1779113438000,-729.77,8.219e-05,2]
[422574287,1779113438000,-500.0,8.218e-05,2]
[422574317,1779113438000,-500.52286349,8.219e-05,2]
[422574315,1779113438000,-519.42238121,8.219e-05,2]
[422574313,1779113438000,-500.0,8.219e-05,2]
[422574316,1779113438000,-1362.48,8.219e-05,2]
[422574314,1779113438000,-500.0,8.219e-05,2]
[422574312,1779113438000,-500.0,8.219e-05,2]
[422574305,1779113438000,-624.43,8.219e-05,2]
[422574308,1779113438000,-560.74,8.219e-05,2]
[422574302,1779113438000,-500.0,8.219e-05,2]
[422574311,1779113438000,-500.0,8.219e-05,2]
[422574300,1779113438000,-9944.5816639,8.219e-05,2]
[422574306,1779113438000,-500.0,8.219e-05,2]
[422574304,1779113438000,-500.0,8.219e-05,2]
[422574310,1779113438000,-1257.04,8.219e-05,2]
[422574301,1779113438000,-500.0,8.219e-05,2]
[422574294,1779113438000,-500.0,8.219e-05,2]
[422574289,1779113438000,-500.0,8.219e-05,2]
[422574303,1779113438000,-1109.23,8.219e-05,2]
[422574288,1779113438000,-650.0,8.218e-05,2]
[422574295,1779113438000,-578.25,8.219e-05,2]
[422574292,1779113438000,-500.0,8.219e-05,2]
[422574291,1779113438000,-500.0,8.219e-05,2]
[422574296,1779113438000,-500.0,8.219e-05,2]
[422574299,1779113438000,-527.76,8.219e-05,2]
[422574298,1779113438000,-500.0,8.219e-05,2]
[422574309,1779113438000,-511.47,8.219e-05,2]
[422574307,1779113438000,-674.71,8.219e-05,2]
[422574297,1779113438000,-500.0,8.219e-05,2]
[422574327,1779113439000,-623.86,8.219e-05,2]
[422574322,1779113439000,-151.0,8.219e-05,2]
[422574321,1779113439000,-500.0,8.219e-05,2]
[422574318,1779113439000,-924.52,8.219e-05,2]
[422574319,1779113439000,-500.0,8.219e-05,2]
[422574320,1779113439000,-500.0,8.219e-05,2]
[422574324,1779113439000,-500.0,8.219e-05,2]
[422574326,1779113439000,-500.0,8.219e-05,2]
[422574329,1779113439000,-963.72,8.219e-05,2]
[422574336,1779113439000,-500.0,8.219e-05,2]
[422574323,1779113439000,-500.0,8.219e-05,2]
[422574328,1779113439000,-512.3,8.219e-05,2]
[422574337,1779113439000,-3409.75,8.219e-05,2]
[422574332,1779113439000,-927.63,8.219e-05,2]
[422574330,1779113439000,-585.7,8.219e-05,2]
[422574335,1779113439000,-1690.25,8.219e-05,2]
[422574333,1779113439000,-578.12,8.219e-05,2]
[422574331,1779113439000,-500.0,8.219e-05,2]
[422574339,1779113439000,-864.49412647,8.219e-05,2]
[422574334,1779113439000,-1171.14,8.219e-05,2]
[422574338,1779113439000,-500.0,8.219e-05,2]
[422574325,1779113439000,-3230.3,8.219e-05,2]
[422574398,1779113443000,-3815.2089356,8.137e-05,2]
[422574400,1779113446000,-1184.7910644,8.137e-05,2]
[422574402,1779113446000,-500.0,8.219e-05,2]
[422574408,1779113446000,-621.41,8.219e-05,2]
[422574404,1779113446000,-500.0,8.219e-05,2]
[422574406,1779113446000,-500.0,8.219e-05,2]
[422574405,1779113446000,-2065.55,8.219e-05,2]
[422574407,1779113446000,-500.0,8.219e-05,2]
[422574401,1779113446000,-38.74587353,8.219e-05,2]
[422574409,1779113446000,-500.0,8.219e-05,2]
[422574403,1779113446000,-574.21,8.219e-05,2]
[422574411,1779113446000,-191.74185648,8.219e-05,2]
[422574413,1779113446000,-500.0,8.219e-05,2]
[422574416,1779113446000,-500.0,8.219e-05,2]
[422574412,1779113446000,-500.0,8.219e-05,2]
[422574414,1779113446000,-3674.71,8.219e-05,2]
[422574415,1779113446000,-512.8,8.219e-05,2]
[422574417,1779113446000,-500.0,8.219e-05,2]
[422574419,1779113446000,-500.0,8.219e-05,2]
[422574418,1779113446000,-523.9,8.219e-05,2]
[422574420,1779113446000,-500.0,8.219e-05,2]
[422574410,1779113446000,-308.25814352,8.219e-05,2]
[422574434,1779113447000,-1684.89,8.219e-05,2]
[422574436,1779113447000,-2119.65,8.219e-05,2]
[422574450,1779113447000,-500.0,8.219e-05,2]
[422574448,1779113447000,-544.29,8.219e-05,2]
[422574446,1779113447000,-500.0,8.219e-05,2]
[422574444,1779113447000,-500.0,8.219e-05,2]
[422574440,1779113447000,-506.29,8.219e-05,2]
[422574453,1779113447000,-500.0,8.219e-05,2]
[422574431,1779113447000,-500.0,8.219e-05,2]
[422574438,1779113447000,-500.0,8.219e-05,2]
[422574430,1779113447000,-587.19,8.219e-05,2]
[422574421,1779113447000,-1475.2,8.219e-05,2]
[422574425,1779113447000,-776.76,8.219e-05,2]
[422574429,1779113447000,-500.0,8.219e-05,2]
[422574426,1779113447000,-552.37,8.219e-05,2]
[422574423,1779113447000,-500.0,8.219e-05,2]
[422574424,1779113447000,-500.0,8.219e-05,2]
[422574427,1779113447000,-500.0,8.219e-05,2]
[422574433,1779113447000,-883.61,8.219e-05,2]
[422574432,1779113447000,-500.0,8.219e-05,2]
[422574442,1779113447000,-500.0,8.219e-05,2]
[422574422,1779113447000,-1294.18,8.219e-05,2]
[422574428,1779113447000,-500.0,8.219e-05,2]
[422574451,1779113447000,-761.95,8.219e-05,2]
[422574476,1779113447000,-568.94,8.219e-05,2]
[422574454,1779113447000,-813.57,8.219e-05,2]
[422574475,1779113447000,-648.07,8.219e-05,2]
[422574473,1779113447000,-188.6902314,8.219e-05,2]
[422574474,1779113447000,-971.35,8.219e-05,2]
[422574477,1779113447000,-1940.16139106,8.219e-05,2]
[422574469,1779113447000,-1249.46831025,8.219e-05,2]
[422574471,1779113447000,-506.41,8.219e-05,2]
[422574470,1779113447000,-525.26168975,8.219e-05,2]
[422574472,1779113447000,-2812.0797686,8.219e-05,2]
[422574465,1779113447000,-3476.58,8.219e-05,2]
[422574462,1779113447000,-8707.58,8.219e-05,2]
[422574463,1779113447000,-500.0,8.219e-05,2]
[422574459,1779113447000,-2155.63,8.219e-05,2]